[Event "Fall IM-E Norm Invitational 2022"]
[Site "Charlotte"]
[Date "2022.11.21"]
[Round "7"]
[White "Ethan Sheehan"]
[Black "Roberto Martin Del Campo"]
[Result "1/2-1/2"]
[ECO "E91"]
[WhiteElo "2157"]
[BlackElo "2243"]
[Annotator "TA"]
[PlyCount "95"]
[EventDate "2022.11.18"]
[EventType "tourn"]
[EventCountry "USA"]
[SourceTitle "playchess.com"]
[Source "ChessBase"]
[SourceQuality "1"]
[TimeControl "5400+30"]

{[%evp 22,95,52,41,28,29,58,52,74,68,74,32,66,33,58,46,45,41,46,36,43,43,52,34,40,45,68,77,113,70,62,66,70,78,77,25,47,43,56,54,70,62,87,0,0,0,15,15,20,16,22,6,13,-7,0,0,0,0,12,0,0,0,0,0,0,0,0,0,0,0,0,0,0,0,0,0]} 1. d4 {[%emt 0:00:06]} Nf6 {[%emt 0:02:56]} 2. Nf3 {[%emt 0:00:06]} g6 {[%emt 0:00:13]} 3. c4 {[%emt 0:00:04]} Bg7 {[%emt 0:00:03]} 4. Nc3 {[%emt 0:00:04]} d6 {[%emt 0:00:03]} 5. e4 {[%emt 0:00:09]} O-O {[%emt 0:00:06]} 6. Be2 {[%emt 0:00:03]} Bg4 {[%emt 0:00:07]} 7. Be3 {[%emt 0:00:08]} Nfd7 {[%emt 0:00:11]} 8. Ng1 {[%emt 0:00:07]} Bxe2 {[%emt 0:00:07]} 9. Ngxe2 {[%emt 0:00:04]} e5 {[%emt 0:00:04]} 10. O-O {[%emt 0:00:49]} Nc6 {[%emt 0:00:20]} 11. d5 {[%emt 0:00:15]} Ne7 12. b4 {[%emt 0:00:08]} f5 {[%emt 0:00:20] E91: King's Indian: Classical: 6 Be2, unusual replies including 6...c5 and 6...Bg4.} 13. f3 {[%emt 0:00:06]} Nf6 {[%emt 0:00:22]} 14. c5 {[%emt 0:03:21]} f4 {[%emt 0:10:43] White is slightly better.} 15. Bf2 {[%emt 0:00:06]} g5 {[%emt 0:00:02]} 16. Rc1 {[%emt 0:06:15]} Rf7 {[%emt 0:03:27] [#]} 17. a4 $146 {[%emt 0:15:41]} ({Predecessor:} 17. cxd6 cxd6 18. Nb5 Ng6 19. Qc2 Bf8 20. Nc7 Rc8 21. Ne6 Rxc2 22. Nxd8 Rxe2 23. Nxf7 Kxf7 {½-½ (56) Matta,N (2231)-Martin Del Campo C,R (2297) Charlotte 2021}) 17... Bf8 {[%emt 0:11:39]} 18. cxd6 {[%emt 0:02:16]} cxd6 {[%emt 0:00:05]} 19. Nb5 {[%emt 0:00:07] [#] And now Nc7 would win.} Nc8 $1 {[%emt 0:11:18]} 20. Rc3 {[%emt 0:10:49] aiming for Qc2.} a6 {[%emt 0:08:30]} 21. Na3 {[%emt 0:00:12]} g4 {[%emt 0:00:08]} 22. Qc2 {[%emt 0:06:44]} Rg7 {[%emt 0:06:03]} 23. Kh1 {[%emt 0:05:15]} (23. Bh4 {feels hotter.} gxf3 24. Rcxf3 Be7 25. Bxf6 Bxf6 26. Kh1) 23... Qe8 {[%emt 0:05:48][%cal Oe8g6]} 24. Bh4 {[%emt 0:14:06]} Be7 {[%emt 0:06:43][%cal Of6d5]} 25. Rc1 {[%emt 0:12:30] White has more active pieces. The black rooks are badly placed.} (25. Bxf6 {with more complications.} Bxf6 26. fxg4 Rxg4 27. Rc7) 25... Na7 {[%emt 0:06:10]} 26. Bxf6 {[%emt 0:08:13]} Bxf6 {[%emt 0:00:08]} 27. fxg4 {[%emt 0:01:08]} Rxg4 {[%emt 0:03:41]} 28. Ng1 {[%emt 0:00:18]} (28. g3 $16) 28... Rg7 {[%emt 0:05:26]} 29. Nc4 {[%emt 0:00:47]} Rd8 {[%emt 0:00:58]} 30. Nb6 {[%emt 0:00:46]} Kh8 {[%emt 0:04:48]} 31. Nf3 {[%emt 0:02:00]} Qg6 {[%emt 0:01:13] [#]} 32. Re1 {[%emt 0:01:24]} ({Better is} 32. Rc7 $1 $16) 32... Rdg8 $11 {[%emt 0:00:38][%cal Bd8g8,Bg8g7,Bg7c7][%mdl 32] The position is equal.} 33. Re2 {[%emt 0:00:01]} Qe8 {[%emt 0:02:06]} 34. Qd1 {[%emt 0:02:43]} Qd8 {[%emt 0:02:58]} 35. Qg1 {[%emt 0:00:18]} Rc7 {[%emt 0:01:32]} 36. Rec2 {[%emt 0:00:47]} Rgg7 {[%emt 0:00:18]} 37. a5 {[%emt 0:03:40]} Nb5 {[%emt 0:01:34]} 38. Rxc7 {[%emt 0:00:07]} Rxc7 {[%emt 0:00:09]} 39. Qc1 {[%emt 0:00:06]} Kg7 {[%emt 0:03:23]} 40. Kg1 {[%emt 0:01:54]} Kf7 {[%emt 0:00:29]} 41. g3 {[%emt 0:03:04]} Rxc2 {[%emt 0:01:19]} 42. Qxc2 {[%emt 0:00:01]} fxg3 {[%emt 0:00:09]} 43. hxg3 {[%emt 0:00:02]} Qg8 {[%emt 0:00:11]} 44. Kg2 {[%emt 0:00:24]} Qg4 {[%emt 0:00:44][%cal Og4f3] Strongly threatening ...Qxf3+!} 45. Qd3 {[%emt 0:00:04]} h5 {[%emt 0:00:44]} 46. Nh2 {[%emt 0:00:19] Pair of Knights!} Qg5 {[%emt 0:00:39]} 47. Nc4 {[%emt 0:00:24]} Qc1 {[%emt 0:00:38]} 48. Nf1 {[%emt 0:00:05] Weighted Error Value: White=0.10 (very precise) /Black=0.08 (flawless)} 1/2-1/2